fUSD/lending_fUSD_20250226
["ID","MTS","AMOUNT","RATE_DAILY","PERIOD"]
[354564229,1740575468899,-150.0,0.00041877,14]
[354564230,1740575468909,-150.0,0.00041877,2]
[354564231,1740575468919,-150.0,0.00041877,2]
[354564232,1740575468929,-150.0,0.0004188,14]
[354564233,1740575468939,-150.0,0.00041881,2]
[354564234,1740575468953,-150.0,0.00041881,2]
[354564235,1740575468964,-150.0,0.00041882,2]
[354564236,1740575468975,-150.0,0.00041883,2]
[354564237,1740575468986,-150.0,0.00041897,2]
[354564238,1740575468995,-155.51,0.000419,11]
[354564239,1740575469005,-300.0,0.000419,15]
[354564240,1740575469015,-598.565,0.000419,30]
[354564241,1740575469024,-254.98,0.00041902,2]
[354564242,1740575469035,-1000.0,0.00041902,2]
[354564243,1740575469045,-1000.0,0.00041902,2]
[354564244,1740575469054,-1000.0,0.00041902,2]
[354564245,1740575469064,-1000.0,0.00041902,2]
[354564246,1740575469073,-728.01678705,0.00041902,2]
[354564247,1740575469083,-150.0,0.00041904,2]
[354564248,1740575469093,-150.0,0.00041908,2]
[354564249,1740575469103,-2359.98385828,0.00041908,15]
[354564250,1740575469112,-500.0,0.00041916,14]
[354564251,1740575469405,-183.77953653,0.00041916,14]
[354564252,1740575469426,-150.0,0.00041638,2]
[354564253,1740575469436,-316.22046347,0.00041916,14]
[354564254,1740575469446,-500.0,0.00041916,14]
[354564255,1740575469456,-509.17,0.00041916,14]
[354564256,1740575469465,-848.49,0.00041916,14]
[354564257,1740575469475,-500.0,0.00041916,14]
[354564258,1740575469485,-1025.0,0.00041916,14]
[354564259,1740575469495,-1058.32,0.00041916,14]
[354564260,1740575469505,-839.71,0.00041916,14]
[354564261,1740575469515,-830.07,0.00041916,14]
[354564262,1740575469524,-500.0,0.00041916,14]
[354564263,1740575469534,-799.42,0.00041916,14]
[354564264,1740575469543,-2060.38,0.00041916,14]
[354564265,1740575469553,-500.0,0.00041916,14]
[354564266,1740575469562,-1007.91,0.00041916,14]
[354564267,1740575469571,-876.82,0.00041916,14]
[354564268,1740575469580,-912.41,0.00041916,14]
[354564269,1740575469590,-548.15,0.00041916,14]
[354564270,1740575469601,-868.59,0.00041916,14]
[354564271,1740575469611,-500.0,0.00041916,14]
[354564272,1740575469621,-684.23,0.00041916,14]
[354564273,1740575469630,-785.3,0.00041916,14]
[354564274,1740575469643,-1791.66,0.00041916,14]
[354564275,1740575469652,-500.0,0.00041916,14]
[354564276,1740575469662,-500.0,0.00041916,14]
[354564277,1740575469672,-551.18,0.00041916,14]
[354564278,1740575469681,-1462.81,0.00041916,14]
[354564279,1740575469691,-691.92,0.00041916,14]
[354564280,1740575469701,-1473.66,0.00041916,14]
[354564281,1740575469711,-805.09,0.00041916,14]
[354564282,1740575469720,-500.0,0.00041916,14]
[354564283,1740575469729,-564.41,0.00041916,14]
[354564284,1740575469739,-500.0,0.00041916,14]
[354564285,1740575469751,-945.45,0.00041916,14]
[354564286,1740575469760,-775.18,0.00041916,14]
[354564287,1740575469769,-658.16,0.00041916,14]
[354564288,1740575469779,-500.0,0.00041916,14]
[354564289,1740575469788,-1588.91,0.00041916,14]
[354564290,1740575469798,-1264.29,0.00041916,14]
[354564291,1740575469807,-711.01,0.00041916,14]
[354564292,1740575469816,-694.67,0.00041916,14]
[354564293,1740575469826,-500.0,0.00041916,14]
[354564294,1740575469836,-1049.98,0.00041916,60]
[354564295,1740575469845,-500.0,0.00041916,14]
[354564296,1740575469854,-799.9,0.00041916,14]
[354564297,1740575469863,-500.0,0.00041916,14]
[354564298,1740575469873,-556.35,0.00041916,14]
[354564299,1740575469882,-500.0,0.00041916,14]
[354564300,1740575469894,-1794.91,0.00041916,14]
[354564301,1740575469903,-1169.9,0.00041916,14]
[354564302,1740575469914,-1360.03,0.00041916,14]
[354564303,1740575469923,-1362.42,0.00041916,14]
[354564304,1740575469933,-500.0,0.00041916,14]
[354564305,1740575469942,-320.41953654,0.00041916,14]
[354564306,1740575472304,-150.0,0.00041746,2]
[354564307,1740575472314,-179.58046346,0.00041916,14]
[354564308,1740575472324,-500.0,0.00041916,14]
[354564309,1740575472333,-949.52,0.00041916,14]
[354564310,1740575472342,-500.0,0.00041916,14]
[354564311,1740575472353,-500.0,0.00041916,14]
[354564312,1740575472362,-1299.68,0.00041916,14]
[354564313,1740575472371,-627.5,0.00041916,14]
[354564314,1740575472381,-500.0,0.00041916,14]
[354564315,1740575472390,-500.0,0.00041916,14]
[354564316,1740575472402,-1287.96,0.00041916,14]
[354564317,1740575472411,-798.2,0.00041916,14]
[354564318,1740575472420,-500.0,0.00041916,14]
[354564319,1740575472430,-552.13,0.00041916,14]
[354564320,1740575472439,-3071.6,0.00041916,14]
[354564321,1740575472448,-606.72,0.00041916,14]
[354564322,1740575472458,-500.0,0.00041916,14]
[354564323,1740575472467,-500.0,0.00041916,14]
[354564324,1740575472477,-1777.33,0.00041916,14]
[354564325,1740575472487,-793.61,0.00041916,14]
[354564326,1740575472498,-500.0,0.00041916,14]
[354564327,1740575472507,-10296.21,0.00041916,14]
[354564328,1740575472517,-1023.39,0.00041916,14]
[354564329,1740575472526,-645.89662589,0.00041916,14]
[354564330,1740575472536,-777.73,0.00041916,14]
[354564331,1740575472546,-3524.06,0.00041916,14]
[354564332,1740575472556,-864.44,0.00041916,14]
[354564333,1740575472567,-965.73,0.00041916,7]
[354564334,1740575472576,-711.47,0.00041916,14]
[354564335,1740575472587,-611.75,0.00041916,14]
[354564336,1740575472597,-899.53,0.00041916,14]
[354564337,1740575472606,-500.0,0.00041916,14]
[354564338,1740575472616,-500.0,0.00041916,14]
[354564339,1740575472625,-500.0,0.00041916,14]
[354564340,1740575472636,-3939.98,0.00041916,14]
[354564341,1740575472649,-761.03,0.00041916,14]
[354564342,1740575472659,-3008.42,0.00041916,14]
[354564343,1740575472670,-720.79,0.00041916,14]
[354564344,1740575472679,-5721.31,0.00041916,14]
[354564345,1740575472689,-710.64,0.00041916,14]
[354564346,1740575472699,-12055.1,0.00041916,14]
[354564347,1740575472709,-500.0,0.00041916,14]
[354564348,1740575472718,-1540.72,0.00041916,14]
[354564349,1740575472728,-500.0,0.00041916,14]
[354564350,1740575472737,-500.0,0.00041916,14]
[354564351,1740575472747,-1490.27,0.00041916,14]
[354564352,1740575472756,-500.0,0.00041916,14]
[354564353,1740575472766,-3529.52,0.00041916,14]
[354564354,1740575472776,-500.0,0.00041916,14]
[354564355,1740575472786,-515.62,0.00041916,14]
[354564356,1740575472795,-500.0,0.00041916,14]
[354564357,1740575472805,-2221.17,0.00041916,14]
[354564358,1740575472814,-2016.18,0.00041916,14]
[354564359,1740575472825,-8947.11,0.00041916,14]
[354564360,1740575472834,-701.76,0.00041916,14]
[354564361,1740575472843,-900.0,0.00041916,120]
[354564362,1740575472852,-500.0,0.00041916,14]
[354564363,1740575472861,-3669.77,0.00041916,14]
[354564364,1740575472871,-500.0,0.00041916,14]
[354564365,1740575472880,-500.0,0.00041916,14]
[354564366,1740575472889,-1329.17,0.00041916,14]
[354564367,1740575472899,-5453.89,0.00041916,14]
[354564368,1740575472908,-2984.46,0.00041916,14]
[354564369,1740575472918,-709.12,0.00041916,14]
[354564370,1740575472927,-3808.99,0.00041916,14]
[354564371,1740575472936,-1288.01,0.00041916,14]
[354564372,1740575472950,-500.0,0.00041916,14]
[354564373,1740575472960,-500.0,0.00041916,14]
[354564374,1740575472970,-1735.75,0.00041916,14]
[354564375,1740575472979,-500.0,0.00041916,14]
[354564376,1740575472989,-500.0,0.00041916,14]
[354564377,1740575472999,-929.59,0.00041916,14]
[354564378,1740575473008,-1946.43,0.00041916,14]
[354564379,1740575473019,-1866.03,0.00041916,14]
[354564380,1740575473028,-934.7,0.00041916,14]
[354564381,1740575473037,-709.76,0.00041916,14]
[354564382,1740575473046,-3708.47,0.00041916,14]
[354564383,1740575473055,-1312.39,0.00041916,14]
[354564384,1740575473064,-1704.08,0.00041916,14]
[354564385,1740575473073,-713.87,0.00041916,14]
[354564386,1740575473082,-1401.72,0.00041916,14]
[354564387,1740575473092,-4142.94,0.00041916,14]
[354564388,1740575473101,-2401.25,0.00041916,14]
[354564389,1740575473110,-778.73,0.00041916,14]
[354564390,1740575473120,-1801.16,0.00041916,14]
[354564391,1740575473129,-904.0,0.00041916,14]
[354564392,1740575473139,-500.0,0.00041916,14]
[354564393,1740575473150,-889.7,0.00041916,14]
[354564394,1740575473160,-500.0,0.00041916,14]
[354564395,1740575473169,-2611.23,0.00041916,14]
[354564396,1740575473179,-500.0,0.00041916,14]
[354564397,1740575473189,-621.4,0.00041916,14]
[354564398,1740575473198,-4835.15,0.00041916,14]
[354564399,1740575473207,-500.0,0.00041916,14]
[354564400,1740575473217,-500.0,0.00041916,14]
[354564401,1740575473227,-3095.21,0.00041916,14]
[354564402,1740575473237,-563.4,0.00041916,14]
[354564403,1740575473247,-2201.26,0.00041916,14]
[354564404,1740575473256,-500.0,0.00041916,14]
[354564405,1740575473266,-500.0,0.00041916,14]
[354564406,1740575473276,-500.0,0.00041916,14]
[354564407,1740575473286,-2807.24116984,0.00041916,14]
[354564408,1740575478823,-630.01883016,0.00041916,14]
[354564409,1740575478832,-500.0,0.00041916,14]
[354564410,1740575478842,-500.0,0.00041916,14]
[354564411,1740575478852,-570.66290577,0.00041916,14]
[354564412,1740575479545,-153.0,0.00041354,2]
[354564413,1740575479555,-153.0,0.00041354,2]
[354564414,1740575479564,-123.01390593,0.00041916,14]
[354564415,1740575479575,-587.98844395,0.00041916,14]
[354564416,1740575479693,-885.97997287,0.00041916,14]
[354564417,1740575479734,-471.19477148,0.00041916,14]
[354564418,1740575479744,-500.0,0.00041916,14]
[354564419,1740575479754,-500.0,0.00041916,14]
[354564420,1740575479763,-2540.82,0.00041916,14]
[354564421,1740575479773,-2112.29,0.00041916,14]
[354564422,1740575479783,-601.4,0.00041916,14]
[354564423,1740575479792,-1138.75,0.00041916,14]
[354564424,1740575479802,-1199.69,0.00041916,14]
[354564425,1740575479811,-1101.82,0.00041916,14]
[354564426,1740575479821,-462.96745012,0.00041916,14]
[354564427,1740575479835,-123.71254988,0.00041916,14]
[354564428,1740575479845,-200.28745012,0.00041916,14]
[354564429,1740575479861,-1458.20254988,0.00041916,14]
[354564430,1740575479870,-1547.98,0.00041916,14]
[354564431,1740575479879,-2977.93,0.00041916,14]
[354564432,1740575479889,-500.0,0.00041916,14]
[354564433,1740575479899,-500.0,0.00041916,14]
[354564434,1740575479914,-500.0,0.00041916,14]
[354564435,1740575479923,-500.0,0.00041916,14]
[354564436,1740575479933,-500.0,0.00041916,14]
[354564437,1740575479943,-500.0,0.00041916,14]
[354564438,1740575479953,-1676.92,0.00041916,14]
[354564439,1740575479964,-500.0,0.00041916,14]
[354564440,1740575479974,-2217.0,0.00041916,14]
[354564441,1740575479983,-242.69852909,0.00041916,14]
[354564442,1740575479999,-1551.3149988,0.00041916,14]
[354564443,1740575480010,-267.70508827,0.00041916,14]
[354564444,1740575480021,-1285.49138384,0.00041916,14]
[354564445,1740575480032,-660.56,0.00041916,14]
[354564446,1740575480050,-2457.64861616,0.00041916,14]
[354564447,1740575541907,-400.0,0.00038355,5]
[354564448,1740575541935,-405.0,0.00038355,4]
[354564449,1740575541965,-133.42111473,0.00038356,30]
[354564450,1740575542027,-323.15777054,0.00038356,30]
[354564451,1740575560059,-154.99,0.00038356,14]
[354564452,1740575560090,-129.02,0.00038356,14]
[354564453,1740575560126,-370.98,0.00038356,14]
[354564456,1740576154259,-1898068.43425934,0.00015,2]
[354564457,1740576156814,4.066e-05,0.00014999,2]
[354564458,1740576273644,150.0,9e-05,2]
[354564461,1740576331614,1723.95665285,0.00023,120]
[354564470,1740576512502,-10714.72027244,0.00018,14]
[354564481,1740576581070,-1973.96669617,9.9e-05,2]
[354564497,1740576632272,-250.0,0.00017324,2]
[354564498,1740576632282,-150.0,0.00018149,2]
[354564499,1740576632292,-96.43088004,0.00018149,2]
[354564500,1740576632303,-153.56911996,0.00018149,2]
[354564501,1740576632314,-250.0,0.00018149,2]
[354564502,1740576632323,-2568.64242778,0.000199,2]
[354564503,1740576632333,-1358.7896624,0.000199,2]
[354564504,1740576632344,-4506.51858765,0.0002152,2]
[354564505,1740576632355,-7256.11153661,0.000217,2]
[354564506,1740576632367,-5434.0,0.000218,2]
[354564507,1740576632377,-500.56263688,0.00022,2]
[354564508,1740576632388,-245.80166996,0.00022,2]
[354564509,1740576632397,-500.0,0.00022,2]
[354564510,1740576632406,-230.34916149,0.0002211,2]
[354564511,1740576632416,-368.07871505,0.0002301,2]
[354564512,1740576632427,-587.39028891,0.0002312,2]
[354564513,1740576632437,-300.0,0.00023199,2]
[354564514,1740576632446,-49952.21174491,0.000232,2]
[354564515,1740576632455,-568.73978485,0.0002322,2]
[354564516,1740576632464,-1000.0,0.00023322,2]
[354564517,1740576632474,-200.0,0.000235,2]
[354564518,1740576632484,-59126.42860806,0.00024,2]
[354564519,1740576632494,-976.98215334,0.00024,2]
[354564520,1740576632503,-53073.16298872,0.00024,2]
[354564521,1740576632515,-381.25439949,0.00024,2]
[354564522,1740576632527,-1517.7796849,0.00024,2]
[354564523,1740576632543,-297.04785907,0.00024,2]
[354564524,1740576632554,-253.83214093,0.00024,2]
[354564526,1740576632588,-398.05286501,0.00024,2]
[354565064,1740576638075,-23167.11243704,0.00024,2]
[354565065,1740576638086,-209.90414319,0.00024,2]
[354565066,1740576638095,-501.68785303,0.00024,2]
[354565067,1740576638105,-500.0,0.00024,2]
[354565068,1740576638406,-779.76934383,0.0002402,2]
[354565069,1740576638416,-403.66443045,0.0002421,2]
[354565070,1740576638427,-3537.07538534,0.0002421,2]
[354565071,1740576638436,-45026.29858266,0.000245,2]
[354565072,1740576638446,-500.0,0.00024932,2]
[354565074,1740576638455,-500.0,0.00024932,2]
[354565076,1740576638465,-17815.95676577,0.00024972,2]
[354565078,1740576638474,-9428.960002,0.00024972,2]
[354565079,1740576638484,-499.999999,0.00024972,5]
[354565081,1740576638494,-495.14685194,0.00024972,2]
[354565083,1740576638503,-207.86858157,0.000252,4]
[354565085,1740576638516,-1000.0,0.00026237,2]
[354565087,1740576638525,-159.16,0.00026849,2]
[354565090,1740576638534,-1054.74617842,0.00028,2]
[354565092,1740576638545,-1000.0,0.00029152,2]
[354565094,1740576638554,-5754.7804,0.0003,2]
[354565095,1740576638565,-179.52,0.00031074,2]
[354565097,1740576638574,-1499.999999,0.0003121,2]
[354565099,1740576638584,-200.0,0.00032,30]
[354565101,1740576638593,-1000.0,0.00032067,2]
[354565103,1740576638602,-171.93,0.00032194,2]
[354565105,1740576638611,-802.32733455,0.00034,2]
[354565107,1740576638621,-179.53,0.00034527,2]
[354565108,1740576638630,-159.16,0.00034716,2]
[354565109,1740576638639,-1000.0,0.00034982,2]
[354565110,1740576638648,-499.999999,0.00035,4]
[354565111,1740576638658,-225.41343754,0.00035,2]
[354565112,1740576638667,-686.34,0.00036129,2]
[354565113,1740576638676,-464.0,0.00036918,2]
[354565114,1740576638685,-464.0,0.00037,2]
[354565115,1740576638694,-262.43,0.00037305,120]
[354565116,1740576638704,-1000.0,0.00037554,2]
[354565117,1740576638714,-150.0,0.00037556,2]
[354565118,1740576638723,-327.2,0.00037807,2]
[354565119,1740576638732,-263.95,0.00038129,2]
[354565120,1740576638742,-251.58,0.00038224,120]
[354565121,1740576638751,-3749.025,0.00038256,51]
[354565122,1740576638761,-178.619,0.00038256,51]
[354565123,1740576638770,-4923.121,0.00038329,10]
[354565124,1740576638779,-1325.00100728,0.00038355,30]
[354565125,1740576638789,-24750.87,0.00038356,2]
[354565126,1740576638798,-1321.63,0.00038356,7]
[354565127,1740576638808,-2347.72,0.00038356,14]
[354565128,1740576638819,-2405.17,0.00038356,14]
[354565129,1740576638828,-2844.03,0.00038356,2]
[354565130,1740576638838,-3091.06,0.00038356,14]
[354565131,1740576638848,-3332.29,0.00038356,14]
[354565132,1740576638857,-14365.51,0.00038356,14]
[354565133,1740576638867,-3011.58,0.00038356,14]
[354565134,1740576638876,-386.58,0.00038356,14]
[354565135,1740576638886,-3287.97,0.00038356,14]
[354565136,1740576638895,-3528.48,0.00038356,14]
[354565137,1740576638904,-500.0,0.00038356,14]
[354565138,1740576638913,-1923.88,0.00038356,14]
[354565139,1740576638922,-500.0,0.00038356,14]
[354565140,1740576638932,-500.0,0.00038356,14]
[354565141,1740576638942,-151.3444361,0.00038359,2]
[354565142,1740576638951,-588.24,0.00038385,2]
[354565143,1740576638960,-334.63,0.00038385,2]
[354565144,1740576638970,-686.34,0.00038393,2]
[354565145,1740576638979,-464.0,0.00038476,14]
[354565146,1740576638988,-178.87,0.00038489,2]
[354565147,1740576638998,-305.94834974,0.00038529,2]
[354565148,1740576639007,-6973.92649355,0.0003853,2]
[354565149,1740576639016,-347.53,0.00038577,2]
[354565150,1740576639025,-2000.0,0.00038625,4]
[354565151,1740576639035,-2194.26,0.00038629,14]
[354565152,1740576639044,-2292.55,0.00038629,14]
[354565153,1740576639054,-1684.49,0.00038629,14]
[354565154,1740576639064,-3502.33,0.00038629,14]
[354565155,1740576639073,-500.0,0.00038629,14]
[354565156,1740576639082,-3197.52,0.00038629,14]
[354565157,1740576639091,-1637.32,0.00038629,14]
[354565158,1740576639101,-2996.28,0.00038629,14]
[354565159,1740576639110,-3772.53,0.00038629,14]
[354565160,1740576639120,-1777.36,0.00038629,14]
[354565161,1740576639129,-1968.19,0.00038629,14]
[354565162,1740576639139,-3895.41,0.00038629,14]
[354565163,1740576639148,-530.56,0.00038629,14]
[354565164,1740576639158,-2232.67,0.00038629,14]
[354565165,1740576639167,-578.42,0.00038629,14]
[354565166,1740576639176,-1150.41,0.00038629,14]
[354565167,1740576639185,-861.61,0.00038629,14]
[354565168,1740576639194,-1469.18,0.00038629,14]
[354565169,1740576639203,-913.09,0.00038629,14]
[354565170,1740576639213,-500.0,0.00038629,14]
[354565171,1740576639222,-1743.61,0.00038629,14]
[354565172,1740576639231,-500.0,0.00038629,14]
[354565173,1740576639241,-500.0,0.00038629,14]
[354565174,1740576639250,-500.0,0.00038629,14]
[354565175,1740576639260,-1322.75,0.00038629,14]
[354565176,1740576639269,-2076.75,0.00038629,14]
[354565177,1740576639278,-1522.56,0.00038629,14]
[354565178,1740576639288,-5279.62,0.00038629,14]
[354565179,1740576639297,-560.85,0.00038629,14]
[354565180,1740576639306,-500.0,0.00038629,14]
[354565181,1740576639316,-1321.63,0.0003863,7]
[354565182,1740576639325,-2347.72,0.0003863,14]
[354565183,1740576639334,-2405.17,0.0003863,14]
[354565184,1740576639345,-2844.03,0.0003863,2]
[354565185,1740576639358,-3091.06,0.0003863,14]
[354565186,1740576639369,-3332.29,0.0003863,14]
[354565187,1740576639379,-14365.51,0.0003863,14]
[354565188,1740576639388,-3011.58,0.0003863,14]
[354565189,1740576639399,-3287.97,0.0003863,14]
[354565190,1740576639408,-3528.48,0.0003863,14]
[354565191,1740576639418,-1923.88,0.0003863,14]
[354565192,1740576639428,-500.0,0.0003863,14]
[354565193,1740576639437,-500.0,0.0003863,14]
[354565194,1740576639447,-334.63,0.00038668,2]
[354565195,1740576639456,-150.0,0.00038693,7]
[354565196,1740576639465,-6973.92649352,0.00038834,2]
[354565197,1740576639474,-450.28839941,0.00038894,3]
[354565198,1740576639484,-3111.22,0.00038903,14]
[354565199,1740576639494,-2194.26,0.00038903,14]
[354565200,1740576639503,-500.0,0.00038903,14]
[354565201,1740576639513,-2292.55,0.00038903,14]
[354565202,1740576639522,-4077.83,0.00038903,14]
[354565203,1740576639532,-1684.49,0.00038903,14]
[354565204,1740576639541,-3502.33,0.00038903,14]
[354565205,1740576639551,-500.0,0.00038903,14]
[354565206,1740576639560,-501.17,0.00038903,14]
[354565207,1740576639570,-3197.52,0.00038903,14]
[354565208,1740576639579,-1637.32,0.00038903,14]
[354565209,1740576639589,-1382.08,0.00038903,14]
[354565210,1740576639598,-2996.28,0.00038903,14]
[354565211,1740576639608,-500.0,0.00038903,14]
[354565212,1740576639618,-3772.53,0.00038903,14]
[354565213,1740576639627,-1037.8,0.00038903,14]
[354565214,1740576639636,-1777.36,0.00038903,14]
[354565215,1740576639645,-1847.5,0.00038903,14]
[354565216,1740576639654,-1968.19,0.00038903,14]
[354565217,1740576639663,-1458.5,0.00038903,14]
[354565218,1740576639672,-3895.41,0.00038903,14]
[354565219,1740576639682,-530.56,0.00038903,14]
[354565220,1740576639691,-4538.84,0.00038903,14]
[354565221,1740576639700,-2232.67,0.00038903,14]
[354565222,1740576639710,-578.42,0.00038903,14]
[354565223,1740576639719,-1150.41,0.00038903,14]
[354565224,1740576639729,-861.61,0.00038903,14]
[354565225,1740576639738,-2256.66,0.00038903,14]
[354565226,1740576639747,-1469.18,0.00038903,14]
[354565227,1740576639756,-913.09,0.00038903,14]
[354565228,1740576639766,-500.0,0.00038903,14]
[354565229,1740576639775,-1743.61,0.00038903,14]
[354565230,1740576639784,-500.0,0.00038903,14]
[354565231,1740576639793,-500.0,0.00038903,14]
[354565232,1740576639802,-500.0,0.00038903,14]
[354565233,1740576639812,-1322.75,0.00038903,14]
[354565234,1740576639822,-3298.14,0.00038903,14]
[354565235,1740576639832,-2076.75,0.00038903,14]
[354565236,1740576639841,-1522.56,0.00038903,14]
[354565237,1740576639851,-5279.62,0.00038903,14]
[354565238,1740576639860,-560.85,0.00038903,14]
[354565239,1740576639870,-1321.63,0.00038904,7]
[354565240,1740576639879,-2347.72,0.00038904,14]
[354565241,1740576639889,-2405.17,0.00038904,14]
[354565242,1740576639898,-2844.03,0.00038904,2]
[354565243,1740576639908,-3091.06,0.00038904,14]
[354565244,1740576639918,-3332.29,0.00038904,14]
[354565245,1740576639927,-14365.51,0.00038904,14]
[354565246,1740576639936,-3011.58,0.00038904,14]
[354565247,1740576639946,-3287.97,0.00038904,14]
[354565248,1740576639955,-3528.48,0.00038904,14]
[354565249,1740576639965,-1923.88,0.00038904,14]
[354565250,1740576639975,-503.09862992,0.00038904,14]
[354565251,1740576639984,-334.63,0.00038951,2]
[354565252,1740576639994,-900.0,0.00039,2]
[354565254,1740576640003,-352.31331037,0.00039077,11]
[354565255,1740576640015,-450.28839941,0.00039129,3]
[354565256,1740576640024,-6973.92649352,0.00039139,2]
[354565257,1740576640034,-1350.86519823,0.00039166,3]
[354565258,1740576640044,-2701.73039646,0.00039167,3]
[354565259,1740576640055,-2380.17870358,0.00039168,3]
[354565260,1740576640069,-1260.95,0.00039176,14]
[354565262,1740576640079,-162.029449,0.00039176,14]
[354565263,1740576640090,-2635.01,0.00039176,14]
[354565264,1740576640099,-1872.72,0.00039176,14]
[354565265,1740576640109,-743.17695,0.00039176,14]
[354565266,1740576640118,-1955.31,0.00039176,14]
[354565267,1740576640131,-1713.626842,0.00039176,14]
[354565268,1740576640141,-2026.05,0.00039176,14]
[354565269,1740576640151,-7441.97,0.00039176,14]
[354565270,1740576640160,-3227.85,0.00039176,14]
[354565271,1740576640170,-3393.4,0.00039176,14]
[354565272,1740576640179,-2483.93,0.00039176,14]
[354565273,1740576640188,-6442.59,0.00039176,14]
[354565274,1740576640200,-2818.36,0.00039176,14]
[354565275,1740576640210,-5322.17,0.00039176,14]
[354565276,1740576640220,-11356.51,0.00039176,14]
[354565277,1740576640229,-500.0,0.00039176,14]
[354565278,1740576640238,-4892.82,0.00039176,14]
[354565279,1740576640247,-4503.6,0.00039176,14]
[354565280,1740576640257,-878.01,0.00039177,14]
[354565281,1740576640266,-500.0,0.00039177,14]
[354565282,1740576640275,-611.03,0.00039177,14]
[354565283,1740576640284,-500.0,0.00039177,14]
[354565284,1740576640294,-1084.58,0.00039177,14]
[354565285,1740576640303,-500.0,0.00039177,14]
[354565286,1740576640312,-828.16,0.00039177,14]
[354565287,1740576640321,-500.0,0.00039177,14]
[354565288,1740576640331,-1679.36,0.00039177,14]
[354565289,1740576640341,-984.17,0.00039177,14]
[354565290,1740576640353,-927.99,0.00039177,14]
[354565291,1740576640363,-1527.43,0.00039177,14]
[354565292,1740576640373,-1258.08,0.00039177,14]
[354565293,1740576640382,-1010.12,0.00039177,14]
[354565294,1740576640393,-932.34,0.00039177,14]
[354565295,1740576640402,-500.0,0.00039177,14]
[354565296,1740576640412,-671.52,0.00039177,14]
[354565297,1740576640421,-902.44,0.00039177,14]
[354565298,1740576640432,-876.65,0.00039177,14]
[354565299,1740576640442,-673.95,0.00039177,14]
[354565300,1740576640451,-500.0,0.00039177,14]
[354565301,1740576640460,-1189.48,0.00039177,14]
[354565302,1740576640469,-604.03,0.00039177,14]
[354565303,1740576640479,-837.03,0.00039177,14]
[354565304,1740576640488,-769.06,0.00039177,14]
[354565305,1740576640497,-1166.51,0.00039177,14]
[354565306,1740576640506,-1540.85,0.00039177,14]
[354565307,1740576640515,-500.0,0.00039177,14]
[354565308,1740576640524,-2292.67,0.00039177,14]
[354565309,1740576640534,-809.73,0.00039177,14]
[354565310,1740576640543,-500.0,0.00039177,14]
[354565311,1740576640552,-2075.5,0.00039177,14]
[354565312,1740576640561,-763.52,0.00039177,14]
[354565313,1740576640571,-1006.7,0.00039177,14]
[354565314,1740576640580,-535.29,0.00039177,14]
[354565315,1740576640590,-419.44077622,0.00039177,14]
[354565316,1740576640599,-500.0,0.00039177,14]
[354565317,1740576640608,-615.2,0.00039177,14]
[354565318,1740576640617,-500.0,0.00039177,14]
[354565319,1740576640626,-500.0,0.00039177,14]
[354565321,1740576640635,-500.0,0.00039177,14]
[354565322,1740576640644,-976.04,0.00039177,14]
[354565324,1740576640654,-500.0,0.00039177,14]